bitfinex-derivatives/quotes_BTCF0:USTF0_20241109
["timestamp","ask_amount","ask_price","bid_price","bid_amount"]
[1731119048156,0.02659528,76188.0,76187.0,0.065578]
[1731119048352,0.03870535,76188.0,76187.0,0.065578]
[1731119048753,0.02659528,76188.0,76187.0,0.065578]
[1731119048960,0.04690777,76188.0,76187.0,0.065578]
[1731119049365,0.02659528,76188.0,76187.0,0.065578]
[1731119051767,0.02659528,76188.0,76187.0,0.201138]
[1731119052566,0.3608,76191.0,76187.0,0.13556]
[1731119052767,0.02615613,76190.0,76189.0,0.07310609]
[1731119052959,0.02615613,76190.0,76189.0,0.13868309]
[1731119055770,0.3608,76191.0,76190.0,0.065576]
[1731119055969,0.36900265,76191.0,76190.0,0.065576]
[1731119056269,0.45223231,76191.0,76190.0,0.065576]
[1731119057569,0.03018026,76215.0,76190.0,1.120136]
[1731119057866,0.03018026,76215.0,76214.0,0.49946109]
[1731119058056,0.14357003,76220.0,76214.0,0.3608]
[1731119058256,0.07310609,76216.0,76214.0,0.3608]
[1731119058663,0.07310609,76216.0,76210.0,0.07854826]
[1731119058863,0.07310609,76212.0,76210.0,0.07854826]
[1731119059269,0.0316,76211.0,76210.0,0.07854826]
[1731119059470,0.063,76211.0,76210.0,0.07854826]
[1731119060673,0.45664,76211.0,76199.0,0.3608]
[1731119060878,0.07310609,76202.0,76199.0,0.3608]
[1731119062873,0.07310609,76206.0,76199.0,0.3608]
[1731119063460,0.13925602,76205.0,76199.0,0.3608]
[1731119063760,0.13925602,76204.0,76201.0,0.065566]
[1731119063964,0.13925602,76203.0,76201.0,0.065566]
[1731119064160,0.13925602,76202.0,76201.0,0.065566]
[1731119064360,0.074305,76205.0,76202.0,0.065565]
[1731119064576,0.1395582,76204.0,76202.0,0.065565]
[1731119064775,0.1395582,76203.0,76202.0,0.065565]
[1731119064972,0.0652535,76203.0,76202.0,0.065565]
[1731119065272,0.1395582,76203.0,76202.0,0.065565]
[1731119065474,0.07310609,76206.0,76199.0,0.3608]
[1731119065475,0.1395582,76205.0,76199.0,0.3608]
[1731119065673,0.1395582,76204.0,76203.0,0.065565]
[1731119066471,0.0652535,76204.0,76203.0,0.065565]
[1731119066673,0.0743047,76204.0,76199.0,0.3608]
[1731119066871,0.10490609,76210.0,76204.0,0.065563]
[1731119067075,0.14020116,76209.0,76204.0,0.065563]
[1731119067266,0.14020116,76208.0,76204.0,0.065563]
[1731119067565,0.07310609,76206.0,76204.0,0.065563]
[1731119067772,0.1563267,76205.0,76204.0,0.065563]
[1731119068465,0.08167967,76205.0,76204.0,0.065563]
[1731119068666,0.01612554,76205.0,76204.0,0.065563]
[1731119068868,0.15675956,76205.0,76204.0,0.13866909]
[1731119069074,0.15675956,76205.0,76204.0,0.065563]
[1731119069976,0.01612554,76205.0,76204.0,0.065563]
[1731119073074,0.01587938,76205.0,76204.0,0.065563]
[1731119075081,0.01587938,76205.0,76204.0,0.13866909]
[1731119076071,0.0061,76212.0,76204.0,0.07310609]
[1731119076280,0.01504175,76211.0,76204.0,0.07310609]
[1731119076575,0.01504175,76210.0,76204.0,0.07310609]
[1731119077277,0.0061,76212.0,76204.0,0.07310609]
[1731119077575,0.0061,76212.0,76209.0,0.065559]
[1731119077777,0.10320609,76215.0,76209.0,0.065559]
[1731119078079,0.07310609,76211.0,76204.0,0.07310609]
[1731119078285,0.07310609,76211.0,76205.0,0.065562]
[1731119078286,0.16772212,76210.0,76205.0,0.065562]
[1731119078473,0.13709923,76209.0,76205.0,0.065562]
[1731119078669,0.13709923,76208.0,76205.0,0.065562]
[1731119078874,0.13709923,76207.0,76205.0,0.065562]
[1731119079074,0.13709923,76206.0,76205.0,0.065562]
[1731119083187,0.13709923,76206.0,76205.0,0.097362]
[1731119084489,0.13709923,76206.0,76205.0,0.065562]
[1731119084978,0.0319,76209.0,76205.0,0.065562]
[1731119085182,0.07310609,76206.0,76205.0,0.065562]
[1731119089789,0.07310609,76206.0,76196.0,0.43390609]
[1731119089790,0.07310609,76206.0,76200.0,0.065567]
[1731119090179,0.07310609,76202.0,76200.0,0.065567]
[1731119090682,0.07310609,76206.0,76196.0,0.43458609]
[1731119090883,0.07310609,76206.0,76203.0,0.065564]
[1731119093788,0.07310609,76206.0,76197.0,0.07310609]
[1731119093992,0.07310609,76206.0,76205.0,0.065563]
[1731119094686,0.3608,76208.0,76203.0,0.07310609]
[1731119094891,0.3608,76208.0,76207.0,0.065561]
[1731119097286,0.07310609,76211.0,76207.0,0.065561]
[1731119097480,0.07310609,76211.0,76204.0,0.0627]
[1731119097686,0.07310609,76211.0,76208.0,0.06556]
[1731119097889,0.07310609,76211.0,76209.0,0.065559]
[1731119099389,0.065561,76207.0,76204.0,0.128263]
[1731119099783,0.065561,76207.0,76204.0,0.0627]
[1731119099984,0.07310609,76211.0,76207.0,0.065561]
[1731119100182,0.06375747,76210.0,76207.0,0.065561]
[1731119100387,0.06375747,76209.0,76207.0,0.065561]
[1731119100582,0.06375747,76208.0,76207.0,0.065561]
[1731119100791,0.06375747,76210.0,76207.0,0.065561]
[1731119101093,0.06375747,76209.0,76208.0,0.06556]
[1731119103490,0.13605104,76209.0,76208.0,0.06556]
[1731119104198,0.13605104,76209.0,76204.0,0.0627]
[1731119104495,0.07310609,76205.0,76204.0,0.0627]
[1731119104701,0.07310609,76205.0,76204.0,0.128264]
[1731119104991,0.14539966,76205.0,76204.0,0.128264]
[1731119105199,0.20915713,76205.0,76204.0,0.128264]
[1731119107395,0.20915713,76205.0,76204.0,0.096264]
[1731119107599,0.27472781,76205.0,76204.0,0.0307]
[1731119107999,0.13866909,76205.0,76204.0,0.0307]
[1731119108998,0.13866909,76205.0,76204.0,0.096264]
[1731119109801,0.36830001,76212.0,76204.0,0.0307]
[1731119110007,0.07310609,76207.0,76204.0,0.096263]
[1731119110299,0.065562,76206.0,76204.0,0.096263]
[1731119114404,0.065562,76206.0,76204.0,0.0307]
[1731119115101,0.13665842,76205.0,76204.0,0.0307]
[1731119115697,0.13665842,76205.0,76200.0,0.0302]
[1731119115698,0.065566,76202.0,76200.0,0.0302]
[1731119115899,0.065568,76199.0,76195.0,0.0611]
[1731119116203,0.07310609,76196.0,76195.0,0.0309]
[1731119116504,0.20976451,76196.0,76195.0,0.0309]
[1731119117013,0.20976451,76196.0,76191.0,0.06754358]
[1731119117208,0.13665842,76195.0,76191.0,0.06754358]
[1731119117410,0.07310609,76196.0,76191.0,0.06754358]
[1731119117411,0.13665842,76194.0,76191.0,0.06754358]
[1731119117709,0.06389764,76193.0,76191.0,0.06754358]
[1731119117909,0.06389764,76192.0,76191.0,0.06754358]
[1731119121816,0.06329422,76192.0,76191.0,0.06754358]
[1731119123013,0.11920904,76194.0,76191.0,0.06754358]
[1731119123216,0.11920904,76194.0,76193.0,0.07310609]
[1731119124203,0.065569,76198.0,76193.0,0.13867909]
[1731119124512,0.07310609,76200.0,76193.0,0.13867909]
[1731119124513,0.06557,76197.0,76193.0,0.13867909]
[1731119124712,0.13867609,76197.0,76193.0,0.13867909]
[1731119125700,0.065571,76196.0,76193.0,0.13867909]
[1731119126110,0.05122992,76201.0,76198.0,0.065568]
[1731119126111,0.3608,76201.0,76198.0,0.065568]
[1731119126316,0.3608,76201.0,76191.0,0.00196858]
[1731119126317,0.3608,76201.0,76200.0,0.065567]
[1731119126518,0.3608,76201.0,76200.0,0.13867309]
[1731119127412,0.0061,76205.0,76200.0,0.14621218]
[1731119127610,0.3608,76210.0,76204.0,0.07310609]
[1731119127611,0.426359,76210.0,76204.0,0.07310609]
[1731119127806,0.47868607,76210.0,76208.0,0.07310609]
[1731119128116,0.426359,76210.0,76208.0,0.07310609]
[1731119128415,0.05379693,76211.0,76208.0,0.13866609]
[1731119128614,0.07310609,76214.0,76208.0,0.13866609]
[1731119128615,0.065557,76212.0,76208.0,0.13866609]
[1731119128818,0.426357,76212.0,76208.0,0.13866609]
[1731119132107,0.065558,76211.0,76208.0,0.13866609]
[1731119132922,0.07310609,76211.0,76204.0,0.07310609]
[1731119133118,0.07310609,76211.0,76198.0,0.3608]
[1731119133119,0.07310609,76206.0,76202.0,0.065565]
[1731119133323,0.065563,76205.0,76202.0,0.065565]
[1731119136413,0.07310609,76206.0,76200.0,0.3608]
[1731119136414,0.065566,76201.0,76200.0,0.3608]
[1731119137212,0.065566,76201.0,76195.0,0.065571]
[1731119137409,0.07310609,76202.0,76195.0,0.065571]
[1731119137619,0.065567,76200.0,76195.0,0.065571]
[1731119138125,0.065567,76200.0,76194.0,0.07310609]
[1731119138126,0.06249963,76199.0,76194.0,0.07310609]
[1731119138321,0.06249963,76198.0,76196.0,0.06557]
[1731119138523,0.06249963,76197.0,76196.0,0.06557]
[1731119139724,0.06249963,76197.0,76191.0,0.36276858]
[1731119139725,0.065572,76195.0,76191.0,0.42834258]
[1731119139924,0.13365021,76194.0,76191.0,0.42834258]
[1731119140113,0.13365021,76193.0,76191.0,0.42834258]
[1731119140318,0.13365021,76192.0,76191.0,0.4809926]
[1731119140720,0.13365021,76192.0,76191.0,0.37600227]
[1731119141411,0.13365021,76192.0,76191.0,0.44910836]
[1731119143640,0.19922421,76192.0,76191.0,0.31042827]
[1731119143826,0.13365021,76192.0,76189.0,0.065576]
[1731119144130,0.065576,76190.0,76189.0,0.065576]
[1731119144321,0.19922621,76190.0,76189.0,0.065576]
[1731119145121,0.065576,76190.0,76189.0,0.065576]
[1731119146523,0.065576,76190.0,76184.0,0.06543289]
[1731119146524,0.065577,76188.0,76184.0,0.13101389]
[1731119146723,0.065577,76188.0,76187.0,0.07310609]
[1731119147629,0.43542609,76193.0,76187.0,0.07310609]
[1731119147823,0.43390609,76193.0,76190.0,0.05240289]
[1731119148023,0.065574,76192.0,76190.0,0.05240289]
[1731119148528,0.065574,76192.0,76189.0,0.05240289]
[1731119149032,0.065574,76192.0,76190.0,0.07310609]
[1731119152934,0.3608,76193.0,76190.0,0.07310609]
[1731119153130,0.065575,76191.0,76190.0,0.07310609]
[1731119153333,0.12693848,76191.0,76190.0,0.07310609]
[1731119153634,0.065575,76191.0,76190.0,0.07310609]
[1731119154137,0.426375,76191.0,76190.0,0.07310609]
[1731119155530,0.426375,76191.0,76186.0,0.065579]
[1731119155932,0.426375,76191.0,76190.0,0.07310609]
[1731119156836,0.4415004,76191.0,76190.0,0.07310609]
[1731119157735,0.44149971,76191.0,76190.0,0.07310609]
[1731119158135,0.44142213,76191.0,76190.0,0.07310609]
[1731119160538,0.37584713,76191.0,76190.0,0.07310609]
[1731119161142,0.3608,76191.0,76190.0,0.13868209]
[1731119162942,0.37578289,76191.0,76190.0,0.13868209]
[1731119163442,0.01498289,76191.0,76190.0,0.13868209]
[1731119163838,0.0061,76197.0,76190.0,0.07310609]
[1731119164040,0.426367,76200.0,76196.0,0.07310609]
[1731119164041,0.42776701,76200.0,76196.0,0.07310609]
[1731119164242,0.48004222,76200.0,76196.0,0.07310609]
[1731119164431,0.48004222,76200.0,76198.0,0.065569]
[1731119165439,0.3608,76200.0,76198.0,0.065569]
[1731119165641,0.0061,76206.0,76204.0,0.065564]
[1731119165844,0.065559,76210.0,76205.0,0.07310609]
[1731119166045,0.065559,76210.0,76205.0,0.13866809]
[1731119166046,0.41272102,76209.0,76205.0,0.13866809]
[1731119167637,0.07310609,76207.0,76203.0,0.06551117]
[1731119167944,0.13866709,76207.0,76206.0,0.05240123]
[1731119168145,0.26890925,76207.0,76200.0,0.07310609]
[1731119168341,0.13024216,76206.0,76200.0,0.07310609]
[1731119168533,0.13866709,76207.0,76200.0,0.07310609]
[1731119168534,0.19580516,76205.0,76200.0,0.07310609]
[1731119168734,0.43390609,76202.0,76196.0,0.07310609]
[1731119168930,0.065567,76200.0,76196.0,0.07310609]
[1731119169231,0.13024216,76199.0,76196.0,0.07310609]
[1731119169436,0.19581116,76198.0,76196.0,0.07310609]
[1731119169742,0.13024216,76197.0,76196.0,0.07310609]
[1731119171740,0.13024216,76197.0,76193.0,0.065573]
[1731119171940,0.13024216,76196.0,76193.0,0.065573]
[1731119172146,0.13044709,76195.0,76193.0,0.065573]
[1731119172339,0.13044709,76194.0,76193.0,0.065573]
[1731119172541,0.13044709,76197.0,76193.0,0.065573]
[1731119172746,0.13044709,76196.0,76193.0,0.065573]
[1731119173044,0.14526067,76195.0,76193.0,0.065573]
[1731119173346,0.14526067,76194.0,76193.0,0.065573]
[1731119173945,0.13044709,76194.0,76193.0,0.065573]
[1731119174435,0.13044709,76197.0,76193.0,0.065573]
[1731119174641,0.13044709,76196.0,76193.0,0.065573]
[1731119174843,0.13044709,76195.0,76193.0,0.065573]
[1731119175142,0.13044709,76194.0,76193.0,0.065573]
[1731119175336,0.0609934,76194.0,76193.0,0.065573]
[1731119175537,0.19204847,76198.0,76194.0,0.065572]
[1731119176047,0.032,76200.0,76195.0,0.07310609]
[1731119176243,0.032,76200.0,76199.0,0.07310609]
[1731119177146,0.032,76200.0,76198.0,0.05240123]
[1731119177339,0.065568,76199.0,76198.0,0.05240123]
[1731119177944,0.08063486,76199.0,76196.0,0.05240123]
[1731119178137,0.01506686,76198.0,76196.0,0.05240123]
[1731119178340,0.065568,76199.0,76196.0,0.05240123]
[1731119178341,0.01506686,76197.0,76196.0,0.05240123]
[1731119178541,0.04746686,76197.0,76196.0,0.05240123]
[1731119179250,0.04741498,76197.0,76196.0,0.05240123]
[1731119180942,0.0324,76197.0,76196.0,0.05240123]
[1731119182852,0.09797,76197.0,76196.0,0.05240123]
[1731119183349,0.09797,76197.0,76193.0,0.13867909]
[1731119183551,0.0324,76197.0,76193.0,0.07310609]
[1731119183748,0.065572,76195.0,76193.0,0.07310609]
[1731119184754,0.065575,76191.0,76189.0,0.41388123]
[1731119185054,0.07310609,76190.0,76189.0,0.05240123]
[1731119185261,0.13868209,76190.0,76189.0,0.05240123]
[1731119185956,0.15409516,76190.0,76189.0,0.05240123]
[1731119186652,0.08098907,76190.0,76189.0,0.05240123]
[1731119186848,0.01541307,76190.0,76189.0,0.05240123]
[1731119188058,0.3608,76192.0,76189.0,0.05240123]
[1731119188354,0.01501053,76191.0,76189.0,0.05240123]
[1731119188556,0.01501053,76190.0,76188.0,0.07310609]
[1731119188754,0.01501053,76189.0,76188.0,0.07310609]
[1731119190056,0.01501053,76189.0,76188.0,0.13868309]
[1731119190555,0.07620943,76189.0,76188.0,0.13868309]
[1731119190858,0.07620943,76189.0,76188.0,0.49948309]
[1731119191060,0.07620943,76189.0,76188.0,0.426377]
[1731119191259,0.07620943,76189.0,76188.0,0.49948309]
[1731119194053,0.07620943,76189.0,76188.0,0.63088309]
[1731119194454,0.07651907,76189.0,76188.0,0.63088309]
[1731119194859,0.01532017,76189.0,76188.0,0.63088309]
[1731119195259,0.0061,76197.0,76196.0,0.065571]
[1731119195562,0.06193237,76197.0,76196.0,0.07310609]
[1731119195866,0.06193237,76197.0,76196.0,0.16987709]
[1731119196165,0.06202291,76197.0,76196.0,0.10430609]
[1731119196774,0.071664,76204.0,76202.0,0.065565]
[1731119196970,0.1326491,76203.0,76202.0,0.065565]
[1731119197763,0.06202303,76203.0,76202.0,0.065565]
[1731119197959,0.065564,76204.0,76197.0,0.05240123]
[1731119198161,0.065564,76204.0,76203.0,0.065565]
[1731119198554,0.0061,76210.0,76200.0,0.14621218]
[1731119198754,0.426359,76209.0,76208.0,0.13866609]
[1731119201159,0.3608,76209.0,76208.0,0.13866609]
[1731119204858,0.00750001,76216.0,76215.0,0.065554]
[1731119205065,0.06187651,76216.0,76215.0,0.065554]
[1731119205356,0.06187651,76216.0,76215.0,0.13866009]
[1731119205357,0.20513101,76216.0,76215.0,0.13866009]
[1731119205666,0.13233581,76216.0,76215.0,0.13866009]
[1731119207967,0.13233581,76216.0,76215.0,0.53230009]
[1731119208960,0.13233581,76216.0,76215.0,0.58551014]
[1731119209162,0.06187651,76216.0,76215.0,0.58551014]
[1731119209858,0.0061,76223.0,76215.0,0.58551014]
[1731119210061,0.13247638,76222.0,76221.0,0.065549]
[1731119210269,0.13247638,76222.0,76221.0,0.557749]
[1731119210766,0.13247638,76222.0,76221.0,0.426349]
[1731119211172,0.13247638,76222.0,76216.0,0.07310609]
[1731119211173,0.06555,76220.0,76218.0,0.13136]
[1731119211370,0.13247638,76219.0,76218.0,0.13136]
[1731119212061,0.19802738,76219.0,76218.0,0.13136]
[1731119212464,0.19802738,76219.0,76218.0,0.172912]
[1731119213172,0.065551,76219.0,76218.0,0.172912]
[1731119213573,0.0303,76221.0,76219.0,0.065551]
[1731119213767,0.0303,76221.0,76220.0,0.06555]
[1731119223074,0.3608,76226.0,76214.0,0.166342]
[1731119223278,0.3608,76226.0,76215.0,0.065554]
[1731119223279,0.0061,76225.0,76215.0,0.065554]
[1731119223474,0.0061,76225.0,76224.0,0.065546]
[1731119223782,0.0061,76232.0,76231.0,0.06554]
[1731119223975,0.062,76235.0,76232.0,0.06554]
[1731119224670,0.3608,76241.0,76232.0,0.17956403]
[1731119224869,0.065534,76239.0,76232.0,0.17956403]
[1731119225071,0.065535,76238.0,76232.0,0.17956403]
[1731119225479,0.3608,76241.0,76232.0,0.17956403]
[1731119227268,0.3608,76241.0,76232.0,0.17756403]
[1731119227670,0.0061,76243.0,76232.0,0.17756403]
[1731119227870,0.065529,76244.0,76241.0,0.065532]
[1731119228081,0.13099575,76243.0,76231.0,0.3608]
[1731119228380,0.13099575,76242.0,76238.0,0.11402403]
[1731119228579,0.13099575,76241.0,76238.0,0.11402403]
[1731119228774,0.13099575,76240.0,76239.0,0.065534]
[1731119228966,0.13099575,76240.0,76239.0,0.17955803]
[1731119232189,0.13099575,76240.0,76239.0,0.54035803]
[1731119232485,0.06124994,76240.0,76239.0,0.54035803]
[1731119232779,0.19496727,76240.0,76239.0,0.3608]
[1731119233484,0.12943427,76240.0,76239.0,0.3608]
[1731119233976,0.12943427,76240.0,76239.0,0.426334]
[1731119235183,0.065527,76247.0,76241.0,0.065531]
[1731119235379,0.065527,76247.0,76242.0,0.07316093]
[1731119235882,0.3608,76248.0,76242.0,0.07316093]
[1731119235883,0.065529,76245.0,76242.0,0.07316093]
[1731119236083,0.065529,76244.0,76242.0,0.07316093]
[1731119236577,0.3608,76248.0,76242.0,0.07316093]
[1731119236782,0.3608,76248.0,76242.0,0.13869093]
[1731119237185,0.065529,76245.0,76242.0,0.13869093]
[1731119237971,0.3608,76248.0,76243.0,0.06553]
[1731119238384,0.3608,76248.0,76236.0,0.12444]
[1731119238687,0.3608,76248.0,76243.0,0.06553]
[1731119239380,0.3608,76248.0,76236.0,0.12444]
[1731119239381,0.3608,76248.0,76247.0,0.065527]
[1731119242282,0.3608,76248.0,76247.0,0.063527]
[1731119247694,0.3608,76252.0,76251.0,0.065523]
[1731119247993,0.3608,76252.0,76251.0,0.13868393]
[1731119252091,0.0061,76257.0,76256.0,0.065519]
[1731119252396,0.3608,76261.0,76260.0,0.065515]
[1731119252687,0.0061,76267.0,76260.0,0.14632186]
[1731119252877,0.3608,76268.0,76267.0,0.065509]
[1731119253286,0.0061,76276.0,76275.0,0.065503]
[1731119253489,0.0061,76284.0,76275.0,0.26360186]
[1731119253684,0.3608,76287.0,76286.0,0.07316093]
[1731119253988,0.3608,76287.0,76286.0,0.13865393]
[1731119255397,0.3608,76287.0,76286.0,0.065493]
[1731119257491,0.3608,76287.0,76286.0,0.060493]
[1731119257692,0.0061,76295.0,76286.0,0.11728]
[1731119257902,0.3608,76296.0,76295.0,0.065485]
[1731119258097,0.3608,76296.0,76291.0,0.11381837]
[1731119258692,0.38850969,76295.0,76289.0,0.11381837]
[1731119258893,0.21883602,76294.0,76289.0,0.11381837]
[1731119259097,0.16967367,76295.0,76289.0,0.11381837]
[1731119259098,0.21883602,76293.0,76289.0,0.11381837]
[1731119259393,0.21883602,76292.0,76288.0,0.065491]
[1731119259592,0.3608,76289.0,76288.0,0.01439119]
[1731119259791,0.57963602,76289.0,76285.0,0.11728]
[1731119259993,0.57963602,76289.0,76287.0,0.065492]
[1731119259994,0.21883602,76288.0,76287.0,0.065492]
[1731119260790,0.21883602,76288.0,76284.0,0.1174308]
[1731119260995,0.21883602,76287.0,76284.0,0.1174308]
[1731119261191,0.21883602,76286.0,76285.0,0.065494]
[1731119261395,0.21883602,76286.0,76285.0,0.096594]
[1731119262995,0.21214905,76286.0,76285.0,0.096594]
[1731119263690,0.12759196,76286.0,76285.0,0.096594]
[1731119265001,0.12759196,76286.0,76285.0,0.128794]
[1731119265506,0.21214905,76286.0,76285.0,0.128794]
[1731119265706,0.16967367,76295.0,76294.0,0.065486]
[1731119265908,0.3608,76296.0,76295.0,0.065485]
[1731119267200,0.426285,76296.0,76295.0,0.065485]
[1731119267905,0.3608,76296.0,76295.0,0.065485]
[1731119269603,0.3608,76296.0,76293.0,0.065487]
[1731119269899,0.3608,76296.0,76295.0,0.065485]
[1731119270106,0.06548,76302.0,76292.0,0.394]
[1731119270295,0.06548,76302.0,76299.0,0.17930037]
[1731119270497,0.36830001,76305.0,76299.0,0.17930037]
[1731119270498,0.36220001,76305.0,76299.0,0.17930037]
[1731119270699,0.3608,76305.0,76299.0,0.17930037]
[1731119272313,0.3608,76305.0,76299.0,0.17530037]
[1731119272607,0.0061,76310.0,76299.0,0.17530037]
[1731119273398,0.071573,76310.0,76299.0,0.17530037]
[1731119274700,0.065474,76309.0,76299.0,0.17530037]
[1731119274898,0.065475,76308.0,76299.0,0.17530037]
[1731119275106,0.065475,76308.0,76299.0,0.29254037]
[1731119275305,0.0061,76306.0,76299.0,0.29254037]
[1731119279608,0.0061,76306.0,76299.0,0.68574037]
[1731119280210,0.0061,76306.0,76299.0,0.571922]
[1731119280408,0.0061,76306.0,76299.0,0.68574037]
[1731119280610,0.0061,76306.0,76299.0,0.29254037]
[1731119280911,0.23142699,76300.0,76299.0,0.54900296]
[1731119281215,0.23142699,76300.0,76299.0,0.15580296]
[1731119281714,0.23142699,76300.0,76299.0,0.2514232]
[1731119282305,0.31418818,76300.0,76299.0,0.1391832]
[1731119282599,0.23142699,76300.0,76299.0,0.2514232]
[1731119286012,0.23142699,76300.0,76299.0,0.6765232]
[1731119286013,0.18152699,76300.0,76299.0,0.6765232]
[1731119288206,0.32471435,76300.0,76299.0,0.6765232]
[1731119288409,0.18152699,76300.0,76299.0,0.6765232]
[1731119288614,0.32471487,76300.0,76299.0,0.6765232]
[1731119288819,0.0501,76300.0,76299.0,0.6765232]
[1731119290010,0.0501,76300.0,76299.0,0.2833232]
[1731119290213,0.0501,76300.0,76299.0,0.6765232]
[1731119291415,0.0501,76300.0,76299.0,0.38579678]
[1731119291620,0.0501,76300.0,76299.0,0.77899678]
[1731119291820,0.0501,76300.0,76299.0,1.13979678]
[1731119292223,0.0501,76300.0,76299.0,0.74659678]
[1731119292418,0.0501,76300.0,76299.0,1.13979678]
[1731119293223,0.0501,76300.0,76299.0,0.74659678]
[1731119293823,0.0061,76306.0,76299.0,0.74659678]
[1731119294013,0.0061,76306.0,76305.0,0.21151354]
[1731119294212,0.0634,76313.0,76312.0,0.065471]
[1731119294417,0.0305,76313.0,76312.0,0.177711]
[1731119295427,0.0305,76313.0,76312.0,0.29142262]
[1731119295920,0.23863606,76313.0,76312.0,0.27243956]
[1731119296315,0.15821338,76313.0,76312.0,0.27243956]
[1731119298219,0.12771338,76313.0,76312.0,0.27243956]
[1731119298421,0.12771338,76313.0,76312.0,0.38615118]
[1731119298422,0.20813606,76313.0,76312.0,0.38615118]
[1731119298620,0.12771338,76313.0,76312.0,0.38615118]
[1731119298819,0.12355261,76313.0,76312.0,0.38615118]
[1731119299827,0.05776973,76313.0,76312.0,0.38615118]
[1731119300028,0.0778984,76319.0,76313.0,0.06547]
[1731119300221,0.0313,76323.0,76322.0,0.17917362]
[1731119300523,0.10924462,76323.0,76322.0,0.29141362]
[1731119302425,0.07794462,76323.0,76322.0,0.26741362]
[1731119302629,0.14144462,76332.0,76331.0,0.065455]
[1731119302830,0.14144462,76332.0,76331.0,0.17916662]
[1731119304036,0.0635,76332.0,76331.0,0.17916662]
[1731119304628,0.0635,76332.0,76331.0,0.23285948]
[1731119306833,0.0635,76332.0,76331.0,0.065455]
[1731119307732,0.065457,76329.0,76328.0,0.065455]
[1731119309030,0.0635,76332.0,76330.0,0.065455]
[1731119310036,0.128954,76332.0,76330.0,0.065455]
[1731119311029,0.19853132,76331.0,76325.0,0.09420933]
[1731119311326,0.1693781,76329.0,76328.0,0.065457]
[1731119311529,0.36790942,76329.0,76328.0,0.065457]
[1731119311937,0.19853132,76329.0,76328.0,0.065457]
[1731119313928,0.19853132,76329.0,76328.0,0.01953467]
[1731119314131,0.19853132,76329.0,76325.0,0.1629259]
[1731119314334,0.1693777,76327.0,76325.0,0.1629259]
[1731119314529,0.2348357,76327.0,76326.0,0.065459]
[1731119314734,0.25519198,76327.0,76326.0,0.065459]
[1731119314938,0.42458162,76327.0,76326.0,0.065459]
[1731119315336,0.25519198,76327.0,76326.0,0.13845111]
[1731119315737,0.35912362,76327.0,76326.0,0.13845111]
[1731119316247,0.18973398,76327.0,76326.0,0.13845111]
[1731119316639,0.35912362,76327.0,76326.0,0.13845111]
[1731119317146,0.28581141,76327.0,76326.0,0.13845111]
[1731119317334,0.28581141,76327.0,76326.0,0.11445111]
[1731119317540,0.18973398,76327.0,76326.0,0.11445111]
[1731119317742,0.11642177,76327.0,76326.0,0.11445111]
[1731119317931,0.18973398,76327.0,76326.0,0.11445111]
[1731119318133,0.11642177,76327.0,76326.0,0.11445111]
[1731119318338,0.18973398,76327.0,76326.0,0.11445111]
[1731119318545,0.11642177,76327.0,76326.0,0.11445111]
[1731119318746,0.18973398,76327.0,76326.0,0.11445111]
[1731119319043,0.3608,76329.0,76328.0,0.065457]
[1731119320648,0.3608,76329.0,76328.0,0.10465501]
[1731119320945,0.3608,76329.0,76328.0,0.065457]
[1731119321144,0.3608,76329.0,76328.0,0.10465501]
[1731119321942,0.3608,76329.0,76328.0,0.065457]
[1731119322446,0.128954,76332.0,76326.0,0.12503007]
[1731119322641,0.128954,76332.0,76331.0,0.065455]
[1731119322835,0.4243,76332.0,76331.0,0.065455]
[1731119328340,0.4243,76332.0,76331.0,0.10470355]
[1731119328541,0.4243,76332.0,76331.0,0.03924855]
[1731119328737,0.4243,76332.0,76327.0,0.03924855]
[1731119328941,0.065457,76328.0,76326.0,0.065459]
[1731119329146,0.065457,76328.0,76326.0,0.10474134]
[1731119329852,0.065457,76328.0,76327.0,0.065458]
[1731119331755,0.065457,76328.0,76327.0,0.13845011]
[1731119331954,0.49115401,76332.0,76330.0,0.065455]
[1731119332150,0.4243,76332.0,76330.0,0.065455]
[1731119332351,0.065455,76331.0,76330.0,0.065455]
[1731119332657,0.065455,76331.0,76330.0,0.041455]
[1731119334058,0.25358801,76331.0,76330.0,0.041455]
[1731119338461,0.25320288,76331.0,76330.0,0.041455]
[1731119339557,0.18774788,76331.0,76323.0,0.07299211]
[1731119339755,0.065459,76327.0,76325.0,0.065459]
[1731119339963,0.11505427,76326.0,76325.0,0.065459]
[1731119340955,0.11505427,76326.0,76323.0,0.07299211]
[1731119340956,0.065459,76327.0,76326.0,0.065459]
[1731119341756,0.065459,76327.0,76323.0,0.07299211]
[1731119341954,0.3608,76324.0,76323.0,0.13845311]
[1731119349073,0.47546287,76324.0,76323.0,0.13845311]
[1731119349573,0.47541528,76324.0,76323.0,0.13845311]
[1731119351663,0.69143803,76324.0,76323.0,0.13845311]
[1731119351870,1.0138026,76324.0,76310.0,0.00072]
[1731119352070,1.0138026,76324.0,76312.0,0.065471]
[1731119352071,0.3608,76313.0,76312.0,0.065471]
[1731119352369,0.47453277,76313.0,76312.0,0.065471]
[1731119353668,0.54542069,76313.0,76307.0,0.05511916]
[1731119353968,0.32807213,76312.0,76311.0,0.065472]
[1731119354273,0.11373277,76312.0,76311.0,0.065472]
[1731119355268,0.17920377,76312.0,76311.0,0.065472]
[1731119355779,0.065473,76310.0,76309.0,0.07299211]
[1731119355974,0.3608,76313.0,76307.0,0.00196562]
[1731119355975,0.065474,76308.0,76307.0,0.00196562]
[1731119359274,0.065474,76308.0,76307.0,0.05423479]
[1731119360373,0.065474,76308.0,76307.0,0.00196562]
[1731119360572,0.065474,76308.0,76307.0,0.0411593]
[1731119360882,0.065474,76308.0,76307.0,0.00196562]
[1731119361479,0.07299211,76310.0,76306.0,0.03919368]
[1731119361785,0.065478,76304.0,76303.0,0.03918735]
[1731119361972,0.065478,76304.0,76302.0,0.03918735]
[1731119361973,0.07299211,76304.0,76302.0,0.03918735]
[1731119362179,0.07299211,76304.0,76300.0,0.03918735]
[1731119362470,0.13847211,76301.0,76300.0,0.03918735]
[1731119362679,0.13847211,76301.0,76298.0,0.03918735]
[1731119362680,0.07299211,76301.0,76298.0,0.03918735]
[1731119362880,0.43527211,76305.0,76294.0,0.2110014]
[1731119362881,0.43379211,76299.0,76294.0,0.2110014]
[1731119363082,0.065485,76295.0,76294.0,0.21099241]
[1731119363378,0.065485,76295.0,76294.0,0.17181405]